bitfinex/quotes_BTCUSD_20250221
["timestamp","ask_amount","ask_price","bid_price","bid_amount"]
[1740143138839,4.02249181,99333.0,99332.0,0.02590989]
[1740143139045,3.87148481,99333.0,99332.0,0.02590989]
[1740143139241,3.87148481,99333.0,99332.0,0.01890989]
[1740143139465,3.87148481,99333.0,99332.0,0.02590989]
[1740143139823,3.87148481,99333.0,99332.0,0.007306]
[1740143140301,3.86758481,99333.0,99332.0,0.007306]
[1740143140510,3.86758481,99333.0,99332.0,0.10995169]
[1740143141772,3.79058481,99333.0,99332.0,0.10295169]
[1740143142113,3.79058481,99333.0,99332.0,0.10995169]
[1740143142910,3.79058481,99333.0,99332.0,0.10295169]
[1740143144593,3.79058481,99333.0,99332.0,0.10995169]
[1740143144721,3.79058481,99333.0,99332.0,0.10295169]
[1740143144929,3.79058481,99333.0,99332.0,0.10995169]
[1740143146409,3.79058481,99333.0,99332.0,0.10295169]
[1740143147943,3.79058481,99333.0,99332.0,0.10995169]
[1740143148165,3.79058481,99333.0,99332.0,0.12861301]
[1740143149797,3.79058481,99333.0,99332.0,0.10995169]
[1740143150286,3.70497307,99333.0,99332.0,0.53481894]
[1740143150495,3.632387,99333.0,99332.0,0.55643188]
[1740143150699,3.51821164,99333.0,99332.0,1.57106059]
[1740143151377,3.48797078,99333.0,99332.0,1.57106059]
[1740143152148,3.48797078,99333.0,99332.0,1.56406059]
[1740143152558,3.45772992,99333.0,99332.0,1.57106059]
[1740143153191,3.42748906,99333.0,99332.0,1.57106059]
[1740143153846,3.42748906,99333.0,99332.0,0.54193103]
[1740143154027,3.42748906,99333.0,99332.0,1.56410059]
[1740143154430,3.42748906,99333.0,99332.0,1.57110059]
[1740143154642,3.42748906,99333.0,99332.0,1.56410059]
[1740143155069,3.42748906,99333.0,99332.0,1.57110059]
[1740143155994,3.34472401,99333.0,99332.0,1.57110059]
[1740143156209,3.26067761,99333.0,99332.0,1.57110059]
[1740143156450,3.18043816,99333.0,99332.0,1.57110059]
[1740143156910,3.1501973,99333.0,99332.0,1.56278059]
[1740143157111,3.11995644,99333.0,99332.0,1.57110059]
[1740143157320,3.03156602,99333.0,99332.0,1.57110059]
[1740143157517,2.98158892,99333.0,99332.0,1.56410059]
[1740143157697,2.98158892,99333.0,99332.0,0.55647188]
[1740143157900,2.95134806,99333.0,99332.0,0.55647188]
[1740143158105,2.92111924,99333.0,99332.0,0.55647188]
[1740143160069,2.89089042,99333.0,99332.0,0.55647188]
[1740143160541,2.89089042,99333.0,99332.0,0.57925854]
[1740143160891,2.89089042,99333.0,99332.0,0.49183854]
[1740143161094,2.89089042,99333.0,99332.0,0.29846969]
[1740143161295,2.89089042,99333.0,99332.0,0.44947769]
[1740143161923,2.89089042,99333.0,99332.0,0.14018969]
[1740143162111,2.89089042,99333.0,99332.0,0.14146969]
[1740143162312,2.89089042,99333.0,99332.0,0.14846969]
[1740143162517,2.89089042,99333.0,99332.0,0.14018969]
[1740143162724,2.89089042,99333.0,99332.0,0.10995169]
[1740143163932,2.89089042,99333.0,99332.0,0.26216763]
[1740143164142,2.89089042,99333.0,99332.0,0.46160054]
[1740143164319,2.89089042,99333.0,99332.0,0.45460054]
[1740143164552,2.89089042,99333.0,99332.0,0.46160054]
[1740143164966,2.89089042,99333.0,99332.0,0.43223969]
[1740143165394,2.89089042,99333.0,99332.0,0.41923969]
[1740143165597,2.89089042,99333.0,99332.0,0.26123169]
[1740143165750,2.89089042,99333.0,99332.0,0.25995169]
[1740143166155,2.89089042,99333.0,99332.0,0.25295169]
[1740143166855,2.89089042,99333.0,99332.0,0.10295169]
[1740143167443,2.78375934,99333.0,99332.0,0.10295169]
[1740143167687,2.78375934,99333.0,99332.0,0.10995169]
[1740143167870,2.78375934,99333.0,99332.0,0.10295169]
[1740143168277,2.78375934,99333.0,99332.0,0.10995169]
[1740143168434,2.78375934,99333.0,99332.0,0.10295169]
[1740143168636,2.78765934,99333.0,99332.0,0.10295169]
[1740143168881,2.78765934,99333.0,99332.0,0.10995169]
[1740143169152,2.78765934,99333.0,99332.0,0.10295169]
[1740143169350,2.78765934,99333.0,99332.0,0.10995169]
[1740143169494,2.78765934,99333.0,99332.0,0.007306]
[1740143170236,2.78765934,99333.0,99332.0,0.10995169]
[1740143170639,2.78765934,99333.0,99332.0,0.10295169]
[1740143170837,2.78765934,99333.0,99332.0,0.10995169]
[1740143171271,2.78765934,99333.0,99332.0,0.10295169]
[1740143171405,2.78765934,99333.0,99332.0,0.007306]
[1740143171813,0.048,99332.0,99331.0,0.01004308]
[1740143172021,0.202908,99332.0,99331.0,0.01004308]
[1740143172436,0.20411596,99332.0,99331.0,0.01004308]
[1740143172650,0.20411596,99332.0,99331.0,4.308e-05]
[1740143173063,0.202923,99322.0,99321.0,0.0017004]
[1740143173264,0.283123,99322.0,99321.0,0.00183009]
[1740143174315,0.201355,99327.0,99312.0,0.05]
[1740143174316,0.284337,99313.0,99312.0,0.05]
[1740143174511,0.284337,99313.0,99312.0,0.05012971]
[1740143175465,0.284337,99313.0,99312.0,0.00012971]
[1740143175619,0.284337,99313.0,99312.0,0.00612971]
[1740143176028,0.0039,99295.0,99284.0,0.0017002]
[1740143176239,0.154965,99295.0,99294.0,4.311e-05]
[1740143176470,0.238265,99295.0,99294.0,4.311e-05]
[1740143176682,0.0872,99295.0,99294.0,4.311e-05]
[1740143177508,0.0872,99295.0,99294.0,0.1026888]
[1740143178324,0.0872,99295.0,99294.0,0.1086888]
[1740143178325,0.0882,99295.0,99294.0,0.1086888]
[1740143178569,0.0872,99295.0,99294.0,0.1026888]
[1740143178787,0.0833,99295.0,99294.0,0.1026888]
[1740143178997,0.0039,99298.0,99294.0,0.1026888]
[1740143179190,0.0039,99297.0,99295.0,0.10264569]
[1740143179426,0.0039,99296.0,99295.0,0.10264569]
[1740143179710,0.0039,99295.0,99294.0,4.311e-05]
[1740143179908,0.0049,99295.0,99294.0,4.311e-05]
[1740143180356,0.0039,99295.0,99294.0,4.311e-05]
[1740143181240,0.0049,99295.0,99294.0,4.311e-05]
[1740143182911,0.15717296,99295.0,99294.0,4.311e-05]
[1740143183469,0.204365,99295.0,99294.0,4.311e-05]
[1740143183874,0.203365,99295.0,99294.0,4.311e-05]
[1740143184299,0.28357296,99295.0,99294.0,4.311e-05]
[1740143184527,0.282365,99295.0,99294.0,4.311e-05]
[1740143186177,0.29690585,99295.0,99294.0,4.311e-05]
[1740143186387,0.54855154,99295.0,99294.0,4.311e-05]
[1740143186609,0.15498,99285.0,99284.0,0.0017002]
[1740143186812,0.39622881,99285.0,99284.0,0.00174333]
[1740143187012,0.39502085,99285.0,99284.0,0.00174333]
[1740143187217,0.0755,99285.0,99284.0,0.00174333]
[1740143187420,0.0794,99285.0,99284.0,0.00174333]
[1740143187837,0.23048,99285.0,99284.0,0.00174333]
[1740143188670,0.238104,99269.0,99268.0,0.0017012]
[1740143188873,0.087,99269.0,99268.0,0.00174435]
[1740143189487,0.0039,99269.0,99268.0,0.10439004]
[1740143189907,0.155004,99269.0,99268.0,0.00174435]
[1740143190557,0.25485281,99269.0,99268.0,0.00174435]
[1740143190763,0.29784485,99269.0,99268.0,0.00174435]
[1740143191138,0.44884485,99269.0,99268.0,0.00174435]
[1740143191340,0.44784485,99269.0,99268.0,0.00174435]
[1740143193736,0.155059,99233.0,99231.0,0.0016986]
[1740143193949,0.15626696,99233.0,99232.0,0.00213076]
[1740143194158,0.155059,99233.0,99232.0,0.00213076]
[1740143194748,0.0039,99233.0,99232.0,0.00213076]
[1740143195116,0.0049,99233.0,99232.0,0.00213076]
[1740143195354,0.0039,99233.0,99232.0,0.10477645]
[1740143195581,0.001,99233.0,99232.0,0.10477645]
[1740143195803,0.0049,99233.0,99232.0,0.10477645]
[1740143196015,0.0039,99236.0,99232.0,0.10477645]
[1740143196364,0.0039,99246.0,99233.0,0.18218328]
[1740143196550,0.0804,99269.0,99233.0,0.18218328]
[1740143196677,0.0039,99253.0,99234.0,0.10264569]
[1740143196878,0.0039,99253.0,99239.0,0.151148]
[1740143197088,0.0039,99267.0,99250.0,0.10264569]
[1740143197289,0.0039,99267.0,99251.0,0.15]
[1740143197497,0.00109219,99279.0,99261.0,0.08053759]
[1740143197738,0.0039,99271.0,99262.0,0.10264569]
[1740143197949,0.0039,99271.0,99262.0,0.10164569]
[1740143198154,0.0039,99271.0,99263.0,0.03147965]
[1740143198355,0.0039,99271.0,99264.0,0.10264569]
[1740143198618,0.001,99267.0,99265.0,0.00120865]
[1740143198821,0.0039,99271.0,99266.0,0.10264569]
[1740143199062,0.0039,99271.0,99267.0,0.00120864]
[1740143199286,0.001,99271.0,99268.0,0.10385434]
[1740143199426,0.0039,99283.0,99270.0,0.10264569]
[1740143199633,0.0039,99283.0,99271.0,0.18439177]
[1740143200085,0.0039,99278.0,99271.0,0.18318328]
[1740143200257,0.0039,99278.0,99272.0,0.00120855]
[1740143200482,0.0039,99278.0,99273.0,0.10264569]
[1740143201264,0.0039,99277.0,99273.0,0.10264569]
[1740143201502,0.0039,99274.0,99273.0,0.10264569]
[1740143201856,0.0039,99274.0,99273.0,0.10385429]
[1740143202084,0.0039,99274.0,99273.0,0.10964569]
[1740143202269,0.0039,99274.0,99273.0,0.10264569]
[1740143202497,0.0039,99278.0,99273.0,0.10385429]
[1740143202713,0.0039,99284.0,99273.0,0.10964569]
[1740143203140,0.0039,99284.0,99274.0,0.00081343]
[1740143203351,0.0039,99284.0,99275.0,0.10264569]
[1740143203775,0.0039,99277.0,99276.0,0.0008133]
[1740143203989,0.0039,99277.0,99276.0,0.10264569]
[1740143204431,0.0039,99283.0,99276.0,0.1034593]
[1740143204635,0.0039,99284.0,99277.0,0.10345924]
[1740143205312,0.0039,99278.0,99277.0,0.10345924]
[1740143205549,0.0039,99278.0,99277.0,0.10264569]
[1740143205963,0.0039,99278.0,99277.0,0.10345912]
[1740143206364,0.0039,99278.0,99277.0,0.10264569]
[1740143206513,0.0039,99278.0,99277.0,0.10964569]
[1740143208153,0.0039,99278.0,99277.0,0.10264569]
[1740143209977,0.0008505,99284.0,99277.0,0.10964569]
[1740143210101,0.0008505,99284.0,99278.0,0.23135072]
[1740143210302,0.0008505,99284.0,99280.0,0.15]
[1740143210506,0.0008505,99284.0,99282.0,0.15]
[1740143210781,0.0008505,99284.0,99283.0,0.25345882]
[1740143210986,0.0008505,99284.0,99283.0,0.25264569]
[1740143211348,0.201392,99309.0,99284.0,0.15]
[1740143211520,0.402584,99358.0,99285.0,0.1034588]
[1740143211712,0.151048,99306.0,99285.0,0.1034588]
[1740143212082,0.151053,99303.0,99285.0,0.1034588]
[1740143212283,0.201372,99319.0,99285.0,0.1034588]
[1740143212492,0.2349185,99300.0,99285.0,0.1034588]
[1740143212689,0.151052,99304.0,99285.0,0.1094588]
[1740143212920,0.2349185,99310.0,99285.0,0.1094588]
[1740143213129,0.15105,99305.0,99285.0,0.1034588]
[1740143213337,0.2349185,99320.0,99285.0,0.1034588]
[1740143213572,0.151042,99310.0,99285.0,0.1034588]
[1740143213778,0.151043,99309.0,99285.0,0.1034588]
[1740143213984,0.151047,99307.0,99285.0,0.1034588]
[1740143214186,0.201394,99308.0,99294.0,0.01]
[1740143214416,0.0008502,99313.0,99295.0,0.10345864]
[1740143215224,0.0008502,99313.0,99295.0,0.10264569]
[1740143215646,0.0008502,99313.0,99298.0,0.10264569]
[1740143215849,0.0008502,99313.0,99297.0,0.08053759]
[1740143215850,0.0008502,99313.0,99312.0,0.151039]
[1740143216052,0.0008502,99313.0,99312.0,0.10345791]
[1740143216463,0.0008502,99313.0,99312.0,0.10264569]
[1740143217511,0.1518872,99313.0,99312.0,0.10264569]
[1740143218915,0.1518872,99313.0,99312.0,0.007]
[1740143219037,0.1518872,99313.0,99297.0,0.08053759]
[1740143219038,0.151047,99307.0,99297.0,0.08053759]
[1740143219236,0.151045,99308.0,99298.0,0.10264569]
[1740143219435,0.201385,99312.0,99298.0,0.10264569]
[1740143219647,0.0008502,99313.0,99298.0,0.10264569]
[1740143219844,0.151046,99308.0,99298.0,0.1034584]
[1740143220048,0.0008502,99313.0,99298.0,0.10264569]
[1740143220274,0.0008502,99313.0,99299.0,0.00081269]
[1740143220647,0.151055,99301.0,99300.0,0.10264569]
[1740143221055,0.151058,99299.0,99298.0,0.007]
[1740143221187,0.151058,99299.0,99295.0,4.316e-05]
[1740143221188,0.15597124,99310.0,99295.0,4.316e-05]
[1740143221390,0.151063,99296.0,99295.0,4.316e-05]
[1740143221713,0.15832,99329.0,99295.0,4.316e-05]
[1740143221976,0.0008502,99313.0,99296.0,0.10264569]
[1740143222198,0.0008502,99313.0,99297.0,0.15081272]
[1740143222400,0.0008502,99313.0,99298.0,0.10964569]
[1740143222602,0.0008502,99313.0,99299.0,0.00081257]
[1740143222786,0.0008502,99313.0,99300.0,0.10345826]
[1740143224399,0.0008502,99313.0,99300.0,0.11045826]
[1740143225299,0.0008502,99313.0,99300.0,0.10345826]
[1740143225482,0.0008502,99313.0,99300.0,0.11045826]
[1740143226722,0.0008502,99313.0,99301.0,0.15]
[1740143226919,0.0008502,99313.0,99302.0,0.10345826]
[1740143228578,0.0008502,99313.0,99302.0,0.11045826]
[1740143229790,0.0008502,99313.0,99302.0,0.10964569]
[1740143230373,0.0008502,99313.0,99303.0,0.00081281]
[1740143230573,0.0008502,99313.0,99304.0,0.10264569]
[1740143230809,0.0008502,99313.0,99305.0,0.00081244]
[1740143231029,0.0008502,99313.0,99306.0,0.10264569]
[1740143231232,0.0008502,99313.0,99307.0,0.00081236]
[1740143231433,0.0008502,99313.0,99308.0,0.10345805]
[1740143232091,0.0008502,99313.0,99309.0,0.15]
[1740143232298,0.0008502,99313.0,99310.0,0.10264569]
[1740143233205,0.0008502,99313.0,99310.0,0.09264569]
[1740143233983,0.0008502,99313.0,99311.0,0.00081259]
[1740143234193,0.0008502,99313.0,99312.0,0.10264569]
[1740143234384,0.0008502,99313.0,99312.0,0.10345793]
[1740143235529,0.0008502,99313.0,99312.0,0.25449693]
[1740143235738,0.0008502,99313.0,99312.0,0.10264569]
[1740143235921,0.0008502,99313.0,99312.0,0.1104578]
[1740143236157,0.0008502,99313.0,99312.0,0.10964569]
[1740143236361,0.0008502,99313.0,99312.0,0.1104578]
[1740143236564,0.0008502,99313.0,99312.0,0.10964569]
[1740143247091,0.0008502,99313.0,99312.0,0.25964569]
[1740143250009,0.0008502,99313.0,99312.0,0.007]
[1740143250682,0.1518872,99313.0,99312.0,0.007]
[1740143255159,0.1518872,99313.0,99312.0,0.014]
[1740143260385,0.16793854,99313.0,99312.0,0.014]
[1740143260606,0.16642805,99313.0,99312.0,0.014]
[1740143261814,0.24903858,99313.0,99312.0,0.014]
[1740143262018,0.39752805,99313.0,99312.0,0.014]
[1740143262745,0.39752805,99313.0,99295.0,4.316e-05]
[1740143262746,0.151063,99296.0,99295.0,4.316e-05]
[1740143263146,0.15257371,99296.0,99295.0,4.316e-05]
[1740143263678,0.15257371,99296.0,99295.0,4.316e-05]
[1740143263876,0.151063,99296.0,99295.0,4.316e-05]
[1740143264057,0.1610185,99296.0,99295.0,4.316e-05]
[1740143264516,0.29895935,99296.0,99295.0,4.316e-05]
[1740143265261,0.0099555,99296.0,99295.0,4.316e-05]
[1740143265460,0.00151065,99306.0,99295.0,4.316e-05]
[1740143265679,0.01021318,99307.0,99296.0,0.10264569]
[1740143265869,0.151053,99303.0,99296.0,0.10264569]
[1740143266243,0.0751,99315.0,99296.0,0.10264569]
[1740143266244,0.15595781,99320.0,99296.0,0.10264569]
[1740143266424,0.00151048,99319.0,99296.0,0.10264569]
[1740143266629,0.201376,99317.0,99296.0,0.10264569]
[1740143266835,0.151043,99310.0,99296.0,0.10264569]
[1740143267040,0.201387,99311.0,99296.0,0.10964569]
[1740143267183,0.201385,99312.0,99296.0,0.10964569]
[1740143267381,0.151043,99309.0,99296.0,0.10964569]
[1740143267585,0.201381,99314.0,99296.0,0.10964569]
[1740143267819,0.201385,99312.0,99296.0,0.10264569]
[1740143268039,0.151043,99310.0,99296.0,0.10264569]
[1740143268241,0.00151048,99317.0,99296.0,0.10964569]
[1740143268242,0.352425,99312.0,99296.0,0.10964569]
[1740143268572,0.15104,99312.0,99296.0,0.10964569]
[1740143268781,0.151042,99310.0,99296.0,0.10964569]
[1740143268988,4e-05,99300.0,99296.0,0.10964569]
[1740143269393,4e-05,99300.0,99296.0,0.10264569]
[1740143269813,4e-05,99300.0,99297.0,0.0059818]
[1740143270045,4e-05,99300.0,99298.0,0.10264569]
[1740143270493,4e-05,99300.0,99297.0,0.00516879]
[1740143270494,4e-05,99300.0,99299.0,0.46654668]
[1740143270700,4e-05,99300.0,99299.0,0.46573379]
[1740143272929,4e-05,99300.0,99299.0,0.47273379]
[1740143273702,4e-05,99300.0,99299.0,0.46573379]
[1740143273899,4e-05,99300.0,99299.0,0.47273379]
[1740143276782,4e-05,99300.0,99299.0,0.46573379]
[1740143277170,4e-05,99300.0,99299.0,0.47273379]
[1740143278719,4e-05,99300.0,99299.0,0.32167579]
[1740143278896,4e-05,99300.0,99299.0,0.19547579]
[1740143279101,4e-05,99300.0,99299.0,0.19628834]
[1740143280469,4e-05,99300.0,99299.0,0.34734634]
[1740143280668,4e-05,99300.0,99299.0,0.57873379]
[1740143280872,4e-05,99300.0,99299.0,0.62473379]
[1740143281069,4e-05,99300.0,99299.0,0.6544424]
[1740143281279,4e-05,99300.0,99299.0,0.66898325]
[1740143281882,0.0008506,99311.0,99310.0,0.383742]
[1740143282246,0.0008506,99311.0,99310.0,0.52124734]
[1740143282461,0.0008506,99311.0,99310.0,0.49153873]
[1740143282707,0.0008506,99311.0,99310.0,0.52178773]
[1740143282915,0.0008506,99311.0,99310.0,0.55146919]
[1740143283117,0.0008506,99311.0,99310.0,0.61151004]
[1740143284993,4.55050924,99330.0,99329.0,0.151013]
[1740143285176,4.55050924,99330.0,99329.0,0.26173869]
[1740143286012,4.55050924,99330.0,99329.0,1.43049869]
[1740143286219,4.55050924,99330.0,99329.0,1.43054185]
[1740143286459,4.55041891,99330.0,99329.0,1.43562867]
[1740143287411,4.55041891,99330.0,99329.0,1.44262867]
[1740143287805,4.55041891,99330.0,99329.0,1.43562867]
[1740143288089,4.55041891,99330.0,99329.0,1.44262867]
[1740143288787,4.55041891,99330.0,99329.0,1.45263618]
[1740143289447,4.55041891,99330.0,99329.0,1.63287918]
[1740143289981,4.55041891,99330.0,99329.0,1.68247918]
[1740143290427,4.55041891,99330.0,99329.0,1.69002003]
[1740143290645,4.55041891,99330.0,99329.0,1.69702003]
[1740143290849,4.55041891,99330.0,99329.0,1.69002003]
[1740143291248,4.55041891,99330.0,99329.0,1.69702003]
[1740143291465,4.55126961,99330.0,99329.0,1.69002003]
[1740143291871,4.55126961,99330.0,99329.0,1.69702003]
[1740143292442,4.55126961,99330.0,99329.0,1.68894003]
[1740143292665,4.55126961,99330.0,99329.0,1.69702003]
[1740143292931,4.23811767,99330.0,99329.0,1.69702003]
[1740143293072,3.32706694,99330.0,99329.0,2.70190166]
[1740143293273,3.29684024,99330.0,99329.0,2.70190166]
[1740143293517,2.92518681,99330.0,99329.0,2.80264616]
[1740143293718,2.34667081,99330.0,99329.0,3.5288479]
[1740143293918,2.31644411,99330.0,99329.0,3.5288479]
[1740143294129,2.28621741,99330.0,99329.0,3.5288479]
[1740143294458,0.98155347,99330.0,99329.0,8.4538369]
[1740143294665,2.37424672,99331.0,99330.0,0.35555185]
[1740143294841,2.08114485,99331.0,99330.0,6.10690373]
[1740143295159,1.98708303,99331.0,99330.0,6.11187339]
[1740143295384,1.95685633,99331.0,99330.0,6.11187339]
[1740143295525,1.95685633,99331.0,99330.0,3.56920325]
[1740143295723,1.86472963,99331.0,99330.0,3.59336439]
[1740143295947,1.66497802,99331.0,99330.0,4.19601008]
[1740143296321,1.56793872,99331.0,99330.0,4.19601008]
[1740143296433,1.53771202,99331.0,99330.0,4.19601008]
[1740143296658,1.50748532,99331.0,99330.0,4.19601008]
[1740143296861,1.47725862,99331.0,99330.0,4.20301008]
[1740143297213,1.47725862,99331.0,99330.0,2.07690635]
[1740143297462,1.44703192,99331.0,99330.0,1.21406923]
[1740143297691,1.40301304,99331.0,99330.0,6.42959908]
[1740143297889,0.57570634,99331.0,99330.0,6.42959908]
[1740143298094,1.61730519,99332.0,99331.0,0.25490373]
[1740143298283,1.58707849,99332.0,99331.0,6.13907601]
[1740143298406,1.55685179,99332.0,99331.0,6.14401551]
[1740143298612,1.55685179,99332.0,99331.0,6.29502551]
[1740143298814,1.52662509,99332.0,99331.0,6.30310551]
[1740143299244,1.49639839,99332.0,99331.0,6.30310551]
[1740143299458,1.49639839,99332.0,99331.0,5.25185537]
[1740143299708,1.49639839,99332.0,99331.0,5.05201651]
[1740143300116,1.49639839,99332.0,99331.0,5.05901651]
[1740143300492,3.6998,99333.0,99331.0,6.48331651]
[1740143300692,2.0448,99333.0,99332.0,5.27961481]
[1740143300932,2.0448,99333.0,99332.0,6.00500557]
[1740143301131,2.01458105,99333.0,99332.0,6.00990956]
[1740143301341,2.01458105,99333.0,99332.0,5.23952056]
[1740143301538,2.01458105,99333.0,99332.0,5.21535942]
[1740143301981,2.01458105,99333.0,99332.0,5.23952056]
[1740143302114,2.01458105,99333.0,99332.0,5.21535942]
[1740143302324,2.01458105,99333.0,99332.0,5.23952056]
[1740143303921,2.01458105,99333.0,99332.0,5.40406141]
[1740143304318,1.9713621,99333.0,99332.0,5.40406141]
[1740143304676,1.94114315,99333.0,99332.0,5.40406141]
[1740143304895,1.9109242,99333.0,99332.0,5.40406141]
[1740143305100,4.3e-07,99334.0,99333.0,0.31554785]
[1740143305425,3.0417,99335.0,99334.0,5.42273485]
[1740143305426,0.554044,99335.0,99334.0,5.42273485]
[1740143305621,4.29692811,99336.0,99335.0,0.50824485]
[1740143305825,3.79327887,99336.0,99335.0,6.57187723]
[1740143305986,3.55572432,99336.0,99335.0,6.57187723]
[1740143306188,2.85954995,99336.0,99335.0,7.47676055]
[1740143306410,2.32568176,99336.0,99335.0,7.30806056]
[1740143306622,2.29546281,99336.0,99335.0,7.30806056]
[1740143306824,2.29546281,99336.0,99335.0,7.81614056]
[1740143307024,2.25136386,99336.0,99335.0,7.35615156]
[1740143307222,2.16278491,99336.0,99335.0,7.35615156]
[1740143307425,0.12148893,99337.0,99336.0,0.151002]
[1740143307785,0.0010503,99369.0,99356.0,0.2]
[1740143307985,0.0010503,99369.0,99368.0,0.25264569]
[1740143308296,0.0010503,99369.0,99368.0,2.3544234]
[1740143308481,0.0010503,99369.0,99368.0,2.36327554]
[1740143308681,0.0010503,99369.0,99368.0,1.19864683]
[1740143308992,0.0010503,99369.0,99368.0,1.12597946]
[1740143309196,0.00148305,99369.0,99368.0,1.19864683]
[1740143309816,0.00148305,99369.0,99368.0,1.20564683]
[1740143310024,0.00148305,99369.0,99368.0,1.19864683]
[1740143310448,0.00148305,99369.0,99368.0,1.36414168]
[1740143310903,0.00148305,99369.0,99368.0,1.84304168]
[1740143311128,0.00148305,99369.0,99368.0,6.84403068]
[1740143311943,0.00148305,99369.0,99368.0,7.74403068]
[1740143312151,0.00148305,99369.0,99368.0,7.73703068]
[1740143312561,0.00148305,99369.0,99368.0,7.74403068]
[1740143313214,2.36436707,99370.0,99368.0,7.85023068]
[1740143313421,2.36436707,99370.0,99369.0,5.59072474]
[1740143313642,1.02469191,99370.0,99369.0,5.61814682]
[1740143313835,0.77918949,99370.0,99369.0,6.73345303]
[1740143313965,0.74898265,99370.0,99369.0,6.73345303]
[1740143314175,0.69526043,99370.0,99369.0,7.63345303]
[1740143314442,0.69526043,99370.0,99369.0,7.66292647]
[1740143314643,0.49671345,99370.0,99369.0,7.66292647]
[1740143314972,0.46650661,99370.0,99369.0,7.66292647]
[1740143315184,0.42077748,99370.0,99369.0,7.66292647]
[1740143315380,0.25268064,99370.0,99369.0,7.66292647]
[1740143315583,0.1408738,99370.0,99369.0,7.49533747]
[1740143315786,0.1408738,99370.0,99369.0,7.21233118]
[1740143315990,0.11066696,99370.0,99369.0,7.19571837]
[1740143316333,0.11066696,99370.0,99369.0,7.20207369]
[1740143316600,0.11066696,99370.0,99369.0,7.59587369]
[1740143316805,0.11066696,99370.0,99369.0,7.58887369]
[1740143316962,0.11066696,99370.0,99369.0,6.88887369]
[1740143317156,0.11066696,99370.0,99369.0,6.88779369]
[1740143317360,0.11151736,99370.0,99369.0,6.89587369]
[1740143317770,0.11151736,99370.0,99369.0,6.87830566]
[1740143318416,0.09576487,99370.0,99369.0,6.88584651]
[1740143319021,0.09576487,99370.0,99369.0,6.89284651]
[1740143319196,0.06555803,99370.0,99369.0,7.19204651]
[1740143319395,1.07513738,99371.0,99370.0,0.42169085]
[1740143319622,1.07513738,99371.0,99370.0,5.69770238]
[1740143319800,1.04493054,99371.0,99370.0,5.70247235]
[1740143320001,1.02248086,99371.0,99370.0,6.20564235]
[1740143320267,0.76416323,99371.0,99370.0,6.20564235]
[1740143320519,0.65688071,99371.0,99370.0,6.20564235]
[1740143320634,0.62667387,99371.0,99370.0,6.22072235]
[1740143320837,0.59646703,99371.0,99370.0,6.27634557]
[1740143321428,0.34414768,99371.0,99370.0,6.97634557]
[1740143321666,1.45718143,99373.0,99372.0,0.407147]
[1740143321898,1.34899189,99373.0,99372.0,5.52532254]
[1740143322075,1.11743144,99373.0,99372.0,6.11048753]
[1740143322312,2.17233412,99374.0,99373.0,0.44394121]
[1740143322528,1.56879696,99375.0,99373.0,5.62885985]
[1740143322733,1.18930223,99375.0,99374.0,5.02441883]
[1740143322935,1.0276504,99375.0,99374.0,5.70716434]
[1740143323142,0.97083828,99375.0,99374.0,6.63638492]
[1740143323353,0.94063475,99375.0,99374.0,7.63003449]
[1740143323564,0.81973122,99375.0,99374.0,7.50957851]
[1740143323774,0.38017798,99375.0,99374.0,7.1799866]
[1740143323983,0.38017798,99375.0,99374.0,7.33895429]
[1740143323984,0.02368324,99375.0,99374.0,7.33895429]
[1740143324190,0.05645914,99400.0,99399.0,0.15]
[1740143324395,0.05645914,99400.0,99399.0,2.98057601]
[1740143324604,0.05645914,99400.0,99399.0,4.01190991]
[1740143325009,0.05645914,99400.0,99399.0,4.01764026]
[1740143325222,0.05645914,99400.0,99399.0,8.82252926]
[1740143325346,0.05645914,99400.0,99399.0,4.14298996]
[1740143325526,0.05636914,99400.0,99399.0,8.94787896]
[1740143325737,0.05636914,99400.0,99399.0,8.95560426]
[1740143326246,0.05636914,99400.0,99399.0,6.13254911]
[1740143327139,0.05636914,99400.0,99399.0,6.12554911]
[1740143327315,0.05636914,99400.0,99399.0,6.13254911]
[1740143327535,0.05636914,99400.0,99399.0,5.63374911]
[1740143327974,0.05636914,99400.0,99399.0,5.63378911]
[1740143329743,0.05721924,99400.0,99399.0,5.63378911]
[1740143330377,0.05721924,99400.0,99399.0,5.61122911]
[1740143330638,0.05721924,99400.0,99399.0,3.97732911]
[1740143330877,0.05721924,99400.0,99399.0,3.95063589]
[1740143331285,0.05721924,99400.0,99399.0,4.42253589]
[1740143331913,0.05721924,99400.0,99399.0,4.41553589]
[1740143332113,0.05721924,99400.0,99399.0,9.22042489]
[1740143332319,0.05721924,99400.0,99399.0,8.90552489]
[1740143332506,0.02701846,99400.0,99399.0,8.92078958]
[1740143332724,0.0002,99409.0,99400.0,0.16454085]
[1740143332921,0.0002,99409.0,99408.0,0.25264569]
[1740143333116,0.0002,99409.0,99408.0,5.56051469]
[1740143333346,0.0002,99409.0,99408.0,6.26051469]
[1740143334959,0.0002,99409.0,99408.0,6.27053517]
[1740143335165,0.0002,99409.0,99408.0,6.29999219]
[1740143335579,0.0002,99409.0,99408.0,6.30699219]
[1740143335995,1e-08,99411.0,99409.0,0.15]
[1740143336208,0.0108506,99430.0,99419.0,0.7]
[1740143336433,0.0108506,99430.0,99425.0,0.25264569]
[1740143336648,0.0108506,99430.0,99426.0,0.15]
[1740143336849,0.0108506,99430.0,99429.0,0.25264569]
[1740143337056,0.0108506,99430.0,99429.0,7.71959585]
[1740143337231,0.0108506,99430.0,99429.0,8.4440725]
[1740143337433,0.0108506,99430.0,99429.0,8.41959585]
[1740143337876,0.0108506,99430.0,99429.0,3.59336983]
[1740143338017,0.0108506,99430.0,99429.0,3.59341299]
[1740143339496,0.0583506,99430.0,99429.0,3.60041299]
[1740143340126,0.0583506,99430.0,99429.0,3.45041299]
[1740143340346,0.0583506,99430.0,99429.0,3.94229299]
[1740143340548,0.0583506,99430.0,99429.0,3.84978919]
[1740143341082,0.0583506,99430.0,99429.0,3.29978919]
[1740143341536,0.0583506,99430.0,99429.0,3.29278919]
[1740143341830,0.0583506,99430.0,99429.0,3.29978919]
[1740143342030,0.0583506,99430.0,99429.0,3.29166919]
[1740143342232,0.0583506,99430.0,99429.0,3.29974919]
[1740143342654,0.0583506,99430.0,99429.0,3.49274919]
[1740143343000,0.0583506,99430.0,99429.0,3.49974919]
[1740143343180,0.0533506,99430.0,99429.0,3.49974919]
[1740143343534,0.0533506,99430.0,99429.0,3.49166919]
[1740143343739,0.0533506,99430.0,99429.0,3.49974919]
[1740143344198,0.05326032,99430.0,99429.0,3.49974919]
[1740143344716,0.05326032,99430.0,99429.0,3.49166919]
[1740143344994,0.13076032,99430.0,99429.0,2.32718756]
[1740143345196,0.13076032,99430.0,99429.0,1.63526756]
[1740143345755,0.12576032,99430.0,99429.0,1.62826756]
[1740143346121,0.12576032,99430.0,99429.0,1.63526756]